lending/lending_fUSD_20250303
["ID","MTS","AMOUNT","RATE_DAILY","PERIOD"]
[355225202,1741025447654,-500.0,0.00014771,2]
[355225203,1741025447664,-500.0,0.00014771,2]
[355225204,1741025447675,-542.29,0.00014771,2]
[355225205,1741025447686,-721.95,0.00014771,2]
[355225206,1741025447701,-650.88,0.00014771,2]
[355225207,1741025447712,-623.89,0.00014771,2]
[355225208,1741025447722,-500.0,0.00014771,2]
[355225209,1741025447733,-500.0,0.00014771,2]
[355225210,1741025447743,-500.0,0.00014771,2]
[355225211,1741025447753,-500.0,0.00014771,2]
[355225212,1741025447763,-500.0,0.00014771,2]
[355225213,1741025447773,-500.0,0.00014771,2]
[355225214,1741025447783,-500.0,0.00014771,2]
[355225215,1741025447792,-500.0,0.00014771,2]
[355225216,1741025447801,-500.0,0.00014771,2]
[355225217,1741025447811,-500.0,0.00014771,2]
[355225218,1741025447820,-500.0,0.00014771,2]
[355225219,1741025447829,-500.0,0.00014771,2]
[355225220,1741025447840,-500.0,0.00014771,2]
[355225221,1741025447850,-500.0,0.00014771,2]
[355225222,1741025447860,-500.0,0.00014771,2]
[355225223,1741025447869,-500.0,0.00014771,2]
[355225224,1741025447879,-500.0,0.00014771,2]
[355225225,1741025447889,-500.0,0.00014771,2]
[355225226,1741025447899,-500.0,0.00014771,2]
[355225227,1741025447908,-500.0,0.00014771,2]
[355225228,1741025447918,-500.0,0.00014771,2]
[355225229,1741025447927,-500.0,0.00014771,2]
[355225230,1741025447937,-500.0,0.00014771,2]
[355225231,1741025447947,-2802.93,0.00014771,2]
[355225232,1741025447957,-500.0,0.00014771,2]
[355225233,1741025447966,-500.0,0.00014771,2]
[355225234,1741025447975,-31761.25,0.00014771,2]
[355225235,1741025447984,-500.0,0.00014771,2]
[355225236,1741025447996,-500.0,0.00014771,2]
[355225237,1741025448007,-609.16,0.00014771,2]
[355225238,1741025448016,-500.0,0.00014771,2]
[355225239,1741025448026,-500.0,0.00014771,2]
[355225240,1741025448036,-500.0,0.00014771,2]
[355225241,1741025448045,-500.0,0.00014771,2]
[355225242,1741025448055,-1362.6,0.00014771,2]
[355225243,1741025448065,-500.0,0.00014771,2]
[355225244,1741025448074,-500.0,0.00014771,2]
[355225245,1741025448084,-500.0,0.00014771,2]
[355225246,1741025448094,-500.0,0.00014771,2]
[355225247,1741025448104,-503.31,0.00014771,2]
[355225248,1741025448113,-500.0,0.00014771,2]
[355225249,1741025448123,-546.80958856,0.00014771,2]
[355225250,1741025448132,-500.0,0.00014771,2]
[355225251,1741025448142,-500.0,0.00014771,2]
[355225252,1741025448151,-4131.39,0.00014771,2]
[355225253,1741025448161,-500.0,0.00014771,2]
[355225254,1741025448171,-500.0,0.00014771,2]
[355225255,1741025448181,-27847.76,0.00014771,2]
[355225256,1741025448191,-506.97,0.00014771,2]
[355225257,1741025448202,-500.0,0.00014771,2]
[355225258,1741025448212,-706.09,0.00014771,2]
[355225259,1741025448222,-500.0,0.00014771,2]
[355225260,1741025448232,-500.0,0.00014771,2]
[355225261,1741025448242,-3861.36,0.00014771,2]
[355225262,1741025448251,-500.0,0.00014771,2]
[355225263,1741025448262,-500.0,0.00014771,2]
[355225264,1741025448272,-733.64,0.00014771,2]
[355225265,1741025448284,-263.27,0.00014771,2]
[355225266,1741025448295,-500.0,0.00014771,2]
[355225267,1741025448306,-1433.19,0.00014771,2]
[355225268,1741025448317,-632.07,0.00014771,2]
[355225269,1741025448328,-5430.1,0.00014771,2]
[355225270,1741025448338,-500.0,0.00014771,2]
[355225271,1741025448350,-504.33895813,0.00014771,2]
[355225272,1741025448362,-500.0,0.00014771,2]
[355225273,1741025448373,-500.0,0.00014771,2]
[355225274,1741025448384,-1582.93,0.00014771,2]
[355225275,1741025448395,-500.0,0.00014771,2]
[355225276,1741025448406,-6939.17,0.00014771,2]
[355225277,1741025448416,-500.0,0.00014771,2]
[355225278,1741025448426,-500.0,0.00014771,2]
[355225279,1741025448436,-500.0,0.00014771,2]
[355225280,1741025448446,-2686.18,0.00014771,2]
[355225281,1741025448463,-852.48,0.00014771,2]
[355225282,1741025448474,-2975.36,0.00014771,2]
[355225283,1741025448484,-500.0,0.00014771,2]
[355225284,1741025448498,-500.0,0.00014771,2]
[355225285,1741025448508,-459.50224267,0.00014771,2]
[355225286,1741025448519,-500.0,0.00014771,2]
[355225287,1741025448528,-500.0,0.00014771,2]
[355225288,1741025448538,-1976.71,0.00014771,2]
[355225289,1741025448548,-500.0,0.00014771,2]
[355225290,1741025448558,-1082.54,0.00014771,2]
[355225291,1741025448567,-500.0,0.00014771,2]
[355225292,1741025448577,-500.0,0.00014771,2]
[355225293,1741025448587,-3432.54,0.00014771,2]
[355225294,1741025448598,-500.0,0.00014771,2]
[355225295,1741025448608,-500.0,0.00014772,2]
[355225296,1741025448618,-500.0,0.00014772,2]
[355225297,1741025448628,-603.71895667,0.00014772,2]
[355225298,1741025448638,-500.0,0.00014772,2]
[355225299,1741025448649,-505.15673492,0.00014772,2]
[355225300,1741025448659,-260.54931711,0.00014772,2]
[355225301,1741025448670,-500.0,0.00014772,2]
[355225302,1741025448680,-1224.99,0.00014772,2]
[355225303,1741025448692,-954.76,0.00014772,2]
[355225304,1741025448711,-809.96,0.00014772,2]
[355225305,1741025448721,-1204.79,0.00014772,2]
[355225306,1741025448733,-1308.18,0.00014772,2]
[355225307,1741025448745,-802.49,0.00014772,2]
[355225308,1741025448755,-500.0,0.00014772,2]
[355225309,1741025448766,-500.0,0.00014772,2]
[355225310,1741025448777,-1090.66,0.00014772,2]
[355225311,1741025448788,-500.0,0.00014772,2]
[355225312,1741025448798,-740.46,0.00014772,2]
[355225313,1741025448808,-1560.61,0.00014772,2]
[355225314,1741025448819,-851.91,0.00014772,2]
[355225315,1741025448828,-1476.98,0.00014772,2]
[355225316,1741025448839,-1023.25,0.00014772,2]
[355225317,1741025448849,-641.5,0.00014772,2]
[355225318,1741025448859,-704.2,0.00014772,2]
[355225319,1741025448875,-564.6,0.00014772,2]
[355225320,1741025448885,-1369.63,0.00014772,2]
[355225321,1741025448894,-1554.2,0.00014772,2]
[355225322,1741025448904,-528.05,0.00014772,2]
[355225323,1741025448914,-1011.67,0.00014772,2]
[355225324,1741025448923,-634.64,0.00014772,2]
[355225325,1741025448933,-809.78,0.00014772,2]
[355225326,1741025448942,-500.0,0.00014772,2]
[355225327,1741025448955,-1188.51,0.00014772,2]
[355225328,1741025448965,-589.08,0.00014772,2]
[355225329,1741025448975,-1207.84,0.00014772,2]
[355225330,1741025448985,-12777.6,0.00014772,2]
[355225331,1741025448995,-940.26,0.00014772,2]
[355225332,1741025449004,-3921.39,0.00014772,2]
[355225333,1741025449014,-500.0,0.00014772,2]
[355225334,1741025449023,-685.91,0.00014772,2]
[355225335,1741025449034,-200.0,0.00014773,2]
[355225336,1741025449043,-160.22222262,0.00014773,2]
[355225337,1741025449052,-160.06315705,0.00014773,2]
[355225338,1741025449062,-197.38349905,0.00014773,2]
[355225339,1741025449071,-160.22225983,0.00014773,2]
[355225340,1741025449081,-500.0,0.00014773,2]
[355225341,1741025449091,-200.0,0.00014773,2]
[355225342,1741025449101,-500.0,0.00014773,2]
[355225343,1741025449111,-500.0,0.00014773,2]
[355225344,1741025449120,-226.0,0.00014773,3]
[355225345,1741025449130,-476.42083269,0.00014773,2]
[355225346,1741025449139,-500.0,0.00014774,2]
[355225347,1741025449149,-500.0,0.00014774,2]
[355225348,1741025449161,-787.95,0.00014774,2]
[355225349,1741025449171,-500.0,0.00014774,2]
[355225350,1741025449180,-500.0,0.00014774,2]
[355225351,1741025449191,-500.0,0.00014774,2]
[355225352,1741025449203,-500.0,0.00014774,2]
[355225353,1741025449212,-500.0,0.00014774,2]
[355225354,1741025449222,-500.0,0.00014774,2]
[355225355,1741025449232,-4746.31401016,0.00014776,2]
[355225356,1741025449242,-443.16829506,0.00014776,2]
[355225357,1741025449252,-141910.97095716,0.00014777,2]
[355225358,1741025449262,-150.0,0.0001478,2]
[355225359,1741025449272,-4746.31401016,0.00014781,2]
[355225360,1741025449282,-67493.96302529,0.00014782,2]
[355225361,1741025449301,-2290.7,0.00014782,2]
[355225362,1741025449667,-313334.03021098,0.00014782,2]
[355225363,1741025452464,-500.0,0.00014769,2]
[355225364,1741025452473,-500.0,0.00014769,2]
[355225365,1741025452483,-500.0,0.00014769,2]
[355225366,1741025452492,-500.0,0.0001477,2]
[355225367,1741025452501,-500.0,0.0001477,2]
[355225368,1741025452511,-99552.33274473,0.00014782,2]
[355225369,1741025452520,-200.6048624,0.00014783,2]
[355225370,1741025452529,-200.6048624,0.00014783,2]
[355225371,1741025452539,-200.6048624,0.00014783,2]
[355225372,1741025452549,-14584.84135651,0.00014783,2]
[355225373,1741025452558,-200.0,0.00014784,2]
[355225374,1741025452568,-200.0,0.00014787,2]
[355225375,1741025452577,-18985.25604061,0.00014787,2]
[355225376,1741025452588,-7212.17049477,0.00014788,2]
[355225377,1741025452597,-476.42083269,0.00014788,2]
[355225378,1741025452607,-150.0,0.00014788,2]
[355225379,1741025452617,-1000.0,0.00014789,2]
[355225380,1741025452626,-918.42543949,0.0001479,2]
[355225381,1741025452635,-7212.17049477,0.00014791,2]
[355225382,1741025452644,-436.6582704,0.00014792,2]
[355225383,1741025452654,-1000.0,0.00014792,2]
[355225384,1741025452663,-1000.0,0.00014792,2]
[355225385,1741025452674,-840.69,0.00014792,2]
[355225386,1741025452694,-500.0,0.00014792,2]
[355225387,1741025452714,-500.0,0.00014792,2]
[355225388,1741025452723,-234.02,0.00014792,2]
[355225389,1741025452733,-1890.0,0.00014792,2]
[355225390,1741025452742,-180505.19973788,0.00014793,2]
[355225391,1741025463810,1046.62913719,0.00014497,2]
[355225392,1741025472204,1111.11516165,0.00014497,2]
[355225393,1741025476833,1116.6,0.00013851,2]
[355225394,1741025494889,1000.0,0.00014444,2]
[355225396,1741025546933,157.56,0.00013806,2]
[355225397,1741025547169,157.56,0.00014109,2]
[355225398,1741025547398,157.56,0.00014413,2]
[355225496,1741025642930,168.4,0.00014121,2]
[355225497,1741025670827,250.0,0.00013709,2]
[355225500,1741025706669,151.0,0.00014511,2]
[355225590,1741025835631,1247.35,0.00013698,2]
[355225591,1741025866098,672.3,0.0001178,2]
[355225592,1741025866325,672.3,0.00014044,2]
[355225593,1741025889256,-6000000.0,0.00025402,45]
[355225594,1741025898654,-199.55959339,0.00014792,5]
[355225595,1741025899415,-10000100.0,0.00025402,45]
[355225596,1741025904502,-10000101.0,0.00025402,45]
[355225597,1741025910011,-10000102.0,0.00025402,45]
[355225598,1741025959364,-150.0,0.00014522,2]
[355225599,1741025971378,-150.0,0.00014523,2]
[355225600,1741026008499,-6300000.0,0.00025402,45]
[355225601,1741026008537,196.0,0.00013692,2]
[355225780,1741026045192,-300.0,0.00022,120]
[355225781,1741026045219,-4522.63096832,0.00022864,120]
[355225782,1741026045243,-160.60982493,0.00022864,120]
[355225783,1741026045266,-1213.27030961,0.00022864,120]
[355225784,1741026045293,-2000.0,0.00023019,120]
[355225785,1741026045326,-300.0,0.00024,120]
[355225786,1741026045352,-2000.0,0.00024519,120]
[355225787,1741026045377,-150.5,0.0002467,120]
[355225788,1741026045402,-150.5,0.0002468,120]
[355225789,1741026045427,-247.44,0.0002469,120]
[355225790,1741026045452,-150.0,0.0002472,120]
[355225791,1741026045477,-2938.67384366,0.000249,120]
[355225792,1741026045502,-1425.10239702,0.00025,60]
[355225793,1741026045528,-100000.0,0.00025,120]
[355225794,1741026045552,-3213.22152611,0.00025,60]
[355225795,1741026045577,-1398.83,0.0002505,120]
[355225796,1741026045602,-150.5,0.0002523,120]
[355225797,1741026045628,-150.0,0.00025265,120]
[355225798,1741026045667,-395.86238839,0.00025599,120]
[355225799,1741026045692,-150.0,0.00025682,120]
[355225800,1741026045718,-150.0,0.00025745,120]
[355225801,1741026045744,-150.0,0.00025933,120]
[355225802,1741026045769,-150.0,0.00025956,120]
[355225803,1741026045796,-150.0,0.00025996,120]
[355225804,1741026045821,-300.0,0.00026,120]
[355225805,1741026045845,-1384.98732,0.00026019,120]
[355225806,1741026045874,-500.0,0.00026019,120]
[355225807,1741026045903,-150.0,0.000268,120]
[355225808,1741026045926,-800.0,0.00026986,120]
[355225809,1741026045954,-300.0,0.00027397,120]
[355225810,1741026045978,-304.82367957,0.00027397,120]
[355225811,1741026046004,-677.83,0.00027397,60]
[355225812,1741026046032,-150.0,0.00027927,120]
[355225813,1741026046270,-300.0,0.00028,120]
[355225814,1741026046315,-150.0,0.00028114,120]
[355225815,1741026046342,-150.0,0.00028309,120]
[355225816,1741026046369,-150.0,0.0002833,120]
[355225817,1741026046396,-150.0,0.00028424,120]
[355225818,1741026046422,-150.0,0.00028485,120]
[355225819,1741026046447,-150.0,0.00028558,120]
[355225820,1741026046473,-150.0,0.00028763,120]
[355225821,1741026046499,-7000.0,0.00029,120]
[355225822,1741026046525,-4485.90201002,0.000295,120]
[355225823,1741026046554,-150.0,0.00029539,120]
[355225824,1741026046580,-150.0,0.00029835,120]
[355225825,1741026046607,-150.0,0.00029909,120]
[355225826,1741026046633,-500.0,0.0003,120]
[355225827,1741026046658,-393.71474686,0.0003,120]
[355225828,1741026046682,-5016.98493997,0.0003,120]
[355225829,1741026046707,-5557.91397297,0.0003,120]
[355225830,1741026046732,-104648.21132,0.0003,120]
[355225831,1741026046758,-16220.34456687,0.0003,120]
[355225832,1741026046788,-150.0,0.00030154,120]
[355225833,1741026046815,-150.0,0.00030456,120]
[355225834,1741026046843,-9233.07179836,0.00031,120]
[355225835,1741026046872,-11290.21950169,0.00031,120]
[355225836,1741026046901,-500.0,0.00032,120]
[355225837,1741026046926,-950.0,0.00032,120]
[355225838,1741026046952,-7000.0,0.00032,120]
[355225839,1741026046979,-1113.81,0.00032876,120]
[355225840,1741026047004,-1113.81,0.00032876,120]
[355225841,1741026047036,-1113.81,0.00032876,120]
[355225842,1741026047088,-1113.81,0.00032876,120]
[355225843,1741026047139,-1113.81,0.00032876,120]
[355225844,1741026047196,-1113.81,0.00032876,120]
[355225845,1741026047250,-1113.81,0.00032876,120]
[355225846,1741026047309,-1113.81,0.00032876,120]
[355225847,1741026047362,-1113.81,0.00032876,120]
[355225848,1741026047401,-1113.81,0.00032876,120]
[355225849,1741026047428,-1113.81,0.00032876,120]
[355225850,1741026047454,-1113.81,0.00032876,120]
[355225851,1741026047479,-1113.81,0.00032876,120]
[355225852,1741026047505,-1113.81,0.00032876,120]
[355225853,1741026047535,-1113.81,0.00032876,120]
[355225854,1741026047562,-1113.81,0.00032876,120]
[355225855,1741026047587,-1113.81,0.00032876,120]
[355225856,1741026047614,-1113.81,0.00032876,120]
[355225857,1741026047640,-1113.81,0.00032876,120]
[355225858,1741026047671,-1113.81,0.00032876,120]
[355225859,1741026047696,-1113.81,0.00032876,120]
[355225860,1741026047723,-1113.81,0.00032876,120]
[355225861,1741026047748,-1113.81,0.00032876,120]
[355225862,1741026047776,-1113.87324962,0.00032876,120]
[355225863,1741026047804,-1000.0,0.00032876,60]
[355225864,1741026047829,-1000.0,0.00032876,60]
[355225865,1741026047855,-1000.0,0.00032876,60]
[355225866,1741026047882,-1000.0,0.00032876,60]
[355225867,1741026047907,-1000.0,0.00032876,60]
[355225868,1741026047932,-1000.0,0.00032876,60]
[355225869,1741026047958,-829.81417746,0.00032876,60]
[355225870,1741026047986,-7512.26106831,0.000329,120]
[355225871,1741026048012,-9888.34552817,0.000329,120]
[355225872,1741026048039,-287.70045123,0.00033,120]
[355225873,1741026048064,-900.0,0.00033187,60]
[355225874,1741026048091,-680.76761894,0.00033461,60]
[355225875,1741026048119,-500.0,0.00034,120]
[355225876,1741026048146,-900.0,0.00034283,60]
[355225877,1741026048175,-1489.78,0.0003467,120]
[355225878,1741026048200,-1013.82,0.00035,90]
[355225879,1741026048227,-200.0,0.00035,120]
[355225880,1741026048252,-703.1875786,0.00035,120]
[355225881,1741026048280,-7000.0,0.00035,120]
[355225882,1741026048307,-10000.0,0.00035,120]
[355225883,1741026048333,-100012.47082161,0.00035,120]
[355225884,1741026048359,-544.31547166,0.00035379,60]
[355225885,1741026048389,-500.0,0.00036,120]
[355225886,1741026048418,-7000.0,0.00037,120]
[355225887,1741026048444,-8148.0,0.00037,117]
[355225888,1741026048473,-627.49975798,0.000372,103]
[355225889,1741026048501,-627.49975795,0.000372,103]
[355225890,1741026048528,-627.49975795,0.000372,103]
[355225891,1741026048557,-627.49975795,0.000372,103]
[355225892,1741026048584,-85777.98914601,0.00038,120]
[355225893,1741026048612,-500.0,0.00038,120]
[355225894,1741026048639,-1050.0,0.00038,120]
[355225895,1741026048665,-3235.32839899,0.00038,120]
[355225896,1741026048691,-6699.81940407,0.00038,120]
[355225897,1741026048718,-641.82,0.00038356,120]
[355225898,1741026048744,-4336.2,0.000384,120]
[355225899,1741026048772,-22500.0,0.000384,120]
[355225900,1741026048803,-1257.82,0.000384,120]
[355225901,1741026048830,-12500.0,0.000384,120]
[355225902,1741026048857,-12500.0,0.000384,120]
[355225903,1741026048887,-12500.0,0.000384,120]
[355225904,1741026048915,-2231.35,0.0003844,120]
[355225905,1741026048941,-15000.0,0.0003844,120]
[355225906,1741026049167,-15000.0,0.0003844,120]
[355225907,1741026049193,-15000.0,0.0003844,120]
[355225908,1741026049219,-15000.0,0.0003844,120]
[355225909,1741026049245,-15000.0,0.0003844,120]
[355225910,1741026049270,-12500.0,0.00038445,120]
[355225911,1741026049298,-12500.0,0.00038445,120]
[355225912,1741026049323,-12500.0,0.00038445,120]
[355225913,1741026049348,-22500.0,0.00038453,120]
[355225914,1741026049373,-15000.0,0.00038482,120]
[355225915,1741026049398,-15000.0,0.00038482,120]
[355225916,1741026049422,-15000.0,0.00038482,120]
[355225917,1741026049446,-15000.0,0.00038482,120]
[355225918,1741026049470,-12500.0,0.0003849,120]
[355225919,1741026049494,-12500.0,0.0003849,120]
[355225920,1741026049518,-12500.0,0.0003849,120]
[355225921,1741026049545,-22500.0,0.00038505,120]
[355225922,1741026049569,-15000.0,0.00038523,120]
[355225923,1741026049593,-15000.0,0.00038523,120]
[355225924,1741026049617,-15000.0,0.00038523,120]
[355225925,1741026049641,-15000.0,0.00038523,120]
[355225926,1741026049666,-12500.0,0.00038535,120]
[355225927,1741026049690,-12500.0,0.00038535,120]
[355225928,1741026049714,-12500.0,0.00038535,120]
[355225929,1741026049738,-22500.0,0.00038558,120]
[355225930,1741026049762,-15000.0,0.00038565,120]
[355225931,1741026049789,-15000.0,0.00038565,120]
[355225932,1741026049813,-15000.0,0.00038565,120]
[355225933,1741026049840,-15000.0,0.00038565,120]
[355225934,1741026049866,-2597.189,0.00038567,52]
[355225935,1741026049902,-12500.0,0.0003858,120]
[355225936,1741026049928,-12500.0,0.0003858,120]
[355225937,1741026049954,-12500.0,0.0003858,120]
[355225938,1741026049980,-15000.0,0.00038606,120]
[355225939,1741026050007,-15000.0,0.00038606,120]
[355225940,1741026050033,-15000.0,0.00038606,120]
[355225941,1741026050058,-15000.0,0.00038606,120]
[355225942,1741026050083,-22499.99,0.0003861,120]
[355225943,1741026050108,-12500.0,0.00038625,120]
[355225944,1741026050133,-12500.0,0.00038625,120]
[355225945,1741026050158,-15000.0,0.00038648,120]
[355225946,1741026050183,-15000.0,0.00038648,120]
[355225947,1741026050208,-15000.0,0.00038648,120]
[355225948,1741026050234,-15000.0,0.00038648,120]
[355225949,1741026050259,-12500.0,0.0003867,120]
[355225950,1741026050287,-12500.0,0.0003867,120]
[355225951,1741026050312,-12500.0,0.0003867,120]
[355225952,1741026050338,-15000.0,0.0003869,120]
[355225953,1741026050362,-15000.0,0.0003869,120]
[355225954,1741026050388,-15000.0,0.0003869,120]
[355225955,1741026050412,-15000.0,0.0003869,120]
[355225956,1741026050437,-12500.0,0.00038715,120]
[355225957,1741026050463,-12500.0,0.00038715,120]
[355225958,1741026050488,-12500.0,0.00038715,120]
[355225959,1741026050513,-15000.0,0.00038731,120]
[355225960,1741026050538,-15000.0,0.00038731,120]
[355225961,1741026050564,-15000.0,0.00038731,120]
[355225962,1741026050591,-12500.0,0.0003876,120]
[355225963,1741026050616,-12500.0,0.0003876,120]
[355225964,1741026050640,-12500.0,0.0003876,120]
[355225965,1741026050665,-15000.0,0.00038773,120]
[355225966,1741026050690,-15000.0,0.00038773,120]
[355225967,1741026050716,-15000.0,0.00038773,120]
[355225968,1741026050742,-12500.0,0.00038805,120]
[355225969,1741026050767,-12500.0,0.00038805,120]
[355225970,1741026050794,-15000.0,0.00038814,120]
[355225971,1741026050820,-15000.0,0.00038814,120]
[355225972,1741026050846,-12500.0,0.0003885,120]
[355225973,1741026050875,-4496.93,0.0003885,120]
[355225974,1741026050900,-15000.0,0.00038856,120]
[355225975,1741026050925,-15000.0,0.00038856,120]
[355225976,1741026050953,-15000.0,0.00038856,120]
[355225977,1741026050980,-12500.0,0.00038895,120]
[355225978,1741026051009,-14657.38,0.00038898,120]
[355225979,1741026051040,-15000.0,0.00038898,120]
[355225980,1741026051066,-15000.0,0.00038898,120]
[355225981,1741026051093,-8963.9,0.00038909,117]
[355225982,1741026051119,-15000.0,0.00038939,120]
[355225983,1741026051144,-15000.0,0.00038939,120]
[355225984,1741026051169,-12500.0,0.0003894,120]
[355225985,1741026051195,-15000.0,0.00038981,120]
[355225986,1741026051222,-15000.0,0.00038981,120]
[355225987,1741026051248,-12500.0,0.00038985,120]
[355225988,1741026051274,-5303.98931458,0.00039,120]
[355225989,1741026051303,-15000.0,0.00039022,120]
[355225990,1741026051329,-15000.0,0.00039022,120]
[355225991,1741026051356,-12500.0,0.0003903,120]
[355225992,1741026051382,-15000.0,0.00039064,120]
[355225993,1741026051409,-15000.0,0.00039064,120]
[355225994,1741026051435,-12500.0,0.00039075,120]
[355225995,1741026051463,-15000.0,0.00039106,120]
[355225996,1741026051489,-15000.0,0.00039106,120]
[355225997,1741026051516,-12500.0,0.0003912,120]
[355225998,1741026051547,-15000.0,0.00039147,120]
[355225999,1741026051574,-1489.78,0.00039148,120]
[355226000,1741026051600,-12500.0,0.00039165,120]
[355226001,1741026051627,-15000.0,0.00039189,120]
[355226002,1741026051653,-4137.87,0.00039189,120]
[355226003,1741026051681,-12500.0,0.0003921,120]
[355226004,1741026051708,-15000.0,0.0003923,120]
[355226005,1741026051734,-12500.0,0.00039255,120]
[355226006,1741026051761,-15000.0,0.00039272,120]
[355226007,1741026051790,-12500.0,0.000393,120]
[355226008,1741026051816,-15000.0,0.00039314,120]
[355226009,1741026051842,-12500.0,0.00039345,120]
[355226010,1741026052065,-15000.0,0.00039355,120]
[355226011,1741026052090,-12500.0,0.0003939,120]
[355226012,1741026052114,-15000.0,0.00039397,120]
[355226013,1741026052139,-641997.81558599,0.000394,120]
[355226014,1741026052164,-12500.0,0.00039435,120]
[355226015,1741026052188,-15000.0,0.00039438,120]
[355226016,1741026052212,-12500.0,0.0003948,120]
[355226017,1741026052237,-12500.0,0.00039525,120]
[355226018,1741026052261,-12500.0,0.0003957,120]
[355226019,1741026052288,-1180.21603825,0.000397,120]
[355226020,1741026052313,-13759.75108491,0.000398,120]
[355226021,1741026052340,-5578.99,0.000398,60]
[355226022,1741026052365,-860965.58416221,0.000398,120]
[355226023,1741026052391,-50000.0,0.000399,120]
[355226024,1741026052416,-325.79009845,0.0004,120]
[355226025,1741026052442,-500.0,0.0004,120]
[355226026,1741026052468,-400.0,0.0004,60]
[355226027,1741026052496,-2000.0,0.0004,120]
[355226028,1741026052522,-5561.48,0.0004,120]
[355226029,1741026052552,-8351.50047071,0.0004,120]
[355226030,1741026052578,-3235.32839899,0.0004,120]
[355226031,1741026052606,-26286.91197782,0.0004,120]
[355226032,1741026052634,-1163046.16680724,0.0004,120]
[355226033,1741026067534,-627.49975795,0.000372,103]
[355226034,1741026067575,-836953.83319276,0.0004,120]
[355226035,1741026067605,-29560.04266296,0.0004,60]
[355226036,1741026067633,-200744.71889973,0.0004,120]
[355226037,1741026067660,-1000.0,0.0004,120]
[355226038,1741026067688,-1415515.0,0.0004,120]
[355226039,1741026067714,-6699.81940407,0.0004,120]
[355226040,1741026067739,-5000.0,0.0004,120]
[355226041,1741026067764,-5000.0,0.0004,120]
[355226042,1741026067789,-5000.0,0.0004,120]
[355226043,1741026067819,-5000.0,0.0004,120]
[355226044,1741026067844,-5000.0,0.0004,120]
[355226045,1741026067871,-5000.0,0.0004,120]
[355226046,1741026067900,-5000.0,0.0004,120]
[355226047,1741026067927,-5000.0,0.0004,120]
[355226048,1741026067952,-5000.0,0.0004,120]
[355226049,1741026067979,-5000.0,0.0004,120]
[355226050,1741026068004,-5000.0,0.0004,120]
[355226051,1741026068030,-2832.15875601,0.0004,120]
[355226052,1741026068059,-150.0,0.0004,120]
[355226053,1741026068082,-150.0,0.0004,120]
[355226054,1741026068107,-150.0,0.0004,120]
[355226055,1741026068132,-158.0,0.0004,120]
[355226056,1741026068158,-5011.0,0.0004,120]
[355226057,1741026068181,-2357.77,0.0004,120]
[355226058,1741026068207,-10000.0,0.0004,120]
[355226059,1741026068232,-10000.0,0.0004,120]
[355226060,1741026068259,-4893.17203631,0.000402,120]
[355226061,1741026068284,-2000000.0,0.0004025,120]
[355226062,1741026068311,-1000.0,0.00040273,120]
[355226063,1741026068336,-1000.0,0.00040273,120]
[355226064,1741026068363,-1000.0,0.00040273,120]
[355226065,1741026068390,-1000.0,0.00040273,120]
[355226066,1741026068416,-1000.0,0.00040273,120]
[355226067,1741026068442,-1000.0,0.00040273,120]
[355226068,1741026068467,-1000.0,0.00040273,120]